{"text_format":"3","workbook":"xlsx","n_sheets":4,"sheets":["职位表","校医、会计需求表","幼教总职数","分组"],"not_rendered":{"defined_names":2},"read":"whole","date_system":"1900"}

{"sheet":"职位表","index":0,"n_rows":59,"n_cols":11,"rows_kept":59,"hidden":true}
["岗位代码","岗位名称","岗位类别","招聘人数","学历学位要求","专业要求","年龄","其它要求","派遣单位","派遣单位地址"]
["A08","保育员","教辅",1,"高中及以上",null,"40周岁及以下","昆山户籍","昆山市绣衣幼儿园","绣衣新村20号"]
["A27","保育员","教辅",1,"高中及以上",null,"40周岁及以下","昆山户籍","昆山开发区蝶湖湾幼儿园","新南中路316号"]
["A29","保育员","教辅",1,"高中及以上",null,"40周岁及以下","昆山户籍","昆山开发区石予幼儿园","富春江路68号"]
["A31","保育员","教辅",10,"高中及以上",null,"40周岁及以下","昆山户籍","昆山开发区盛庄幼儿园","昆山开发区盛悦路99号"]
["A33","保育员","教辅",6,"高中及以上",null,"40周岁及以下","昆山户籍","昆山开发区青阳港幼儿园","昆山市玉山镇童乐路28号"]
["A40","保育员","教辅",1,"高中及以上",null,"40周岁及以下","昆山户籍","昆山开发区蓬朗幼儿园","蓬莱路677号"]
["A42","保育员","教辅",7,"高中及以上",null,"40周岁及以下","昆山户籍","昆山开发区绿地幼儿园","景王路188号"]
["A44","保育员","教辅",1,"高中及以上",null,"40周岁及以下","昆山户籍","昆山开发区东部新城幼儿园","太湖南路33号阳光水世界内"]
["A55","保育员","教辅",10,"高中及以上",null,"40周岁及以下","昆山户籍","昆山开发区兵希幼儿园","昆山开发区幼学路5号"]
["A61","保育员","教辅",5,"高中及以上",null,"40周岁及以下","昆山户籍","昆山经济技术开发区世茂幼儿园","清江路188号"]
["A63","档案管理员","教辅",1,"普通高等学校专科及以上毕业生",null,"35周岁及以下","昆山户籍","昆山经济技术开发区世茂小学","千岛湖路18号","有语文教师资格证的优先"]
["A01","地理教师","教师",1,"全日制普通高校本科及以上学历学位","地理类","35周岁及以下",null,"昆山市玉山中学","车站路228号"]
["A45","化学教师","教师",1,"全日制普通高校本科及以上学历学位","化学类 ","35周岁及以下",null,"昆山开发区晨曦中学","开发区前程环路199号"]
["A11","化学实验员","教辅",1,"普通高等学校专科及以上毕业生","化学类","35周岁及以下","昆山户籍","昆山市蓬朗中学","景王路35号"]
["A46","化学实验员","教辅",1,"普通高等学校专科及以上毕业生","化学类","35周岁及以下","昆山户籍","昆山开发区晨曦中学","开发区前程环路199号","化学专业，大专及以上"]
["A67","科技楼管理员","教辅",1,"普通高等学校专科及以上毕业生",null,"35周岁及以下","昆山户籍","昆山经济技术开发区高级中学","南浜路518号","男性，本科以上，35周以下，管理学（包括实验管理、行政管理、会务管理、图书管理等专业）"]
["A02","历史教师","教师",1,"全日制普通高校本科及以上学历学位","历史类","35周岁及以下",null,"昆山市玉山中学","车站路228号"]
["A12","历史教师","教师",1,"全日制普通高校本科及以上学历学位","历史类","35周岁及以下",null,"昆山市蓬朗中学","景王路35号"]
["A47","历史教师","教师",1,"全日制普通高校本科及以上学历学位","历史类","35周岁及以下",null,"昆山开发区晨曦中学","开发区前程环路199号"]
["A18","美术教师","教师",1,"全日制普通高校本科及以上学历学位","美术类","35周岁及以下",null,"昆山市蓬朗中心小学校","天文路88号"]
["A22","美术教师","教师",1,"全日制普通高校本科及以上学历学位","美术类","35周岁及以下",null,"昆山开发区震川小学","樾河北路360号"]
["A03","生物教师","教师",2,"全日制普通高校本科及以上学历学位","生物类 ","35周岁及以下",null,"昆山市玉山中学","车站路228号"]
["A05","数学教师","教师",1,"全日制普通高校本科及以上学历学位","数学类；物理类；化学类；生物类；信息技术类","35周岁及以下",null,"昆山市玉山镇第三中心小学校","朝阳中路11号"]
["A13","数学教师","教师",2,"全日制普通高校本科及以上学历学位","数学类；物理类；化学类；生物类；信息技术类","35周岁及以下",null,"昆山市蓬朗中学","景王路35号"]
["A23","数学教师","教师",1,"全日制普通高校本科及以上学历学位","数学类；物理类；化学类；生物类；信息技术类","35周岁及以下",null,"昆山开发区震川小学","樾河北路360号"]
["A35","数学教师","教师",1,"全日制普通高校本科及以上学历学位","数学类；物理类；化学类；生物类；信息技术类","35周岁及以下",null,"昆山开发区青阳港学校","西巷路58号"]
["A48","数学教师","教师",2,"全日制普通高校本科及以上学历学位","数学类；物理类；化学类；生物类；信息技术类","35周岁及以下",null,"昆山开发区晨曦中学","开发区前程环路199号"]
["A52","数学教师","教师",1,"全日制普通高校本科及以上学历学位","数学类；物理类；化学类；生物类；信息技术类","35周岁及以下",null,"昆山开发区晨曦小学","太湖路166号"]
["A57","数学教师","教师",3,"全日制普通高校本科及以上学历学位","数学类；物理类；化学类；生物类；信息技术类","35周岁及以下",null,"昆山开发区兵希小学","千岛湖路1088号"]
["A64","数学教师","教师",3,"全日制普通高校本科及以上学历学位","数学类；物理类；化学类；生物类；信息技术类","35周岁及以下",null,"昆山经济技术开发区实验小学","黄河北路127号"]
["A20","水电工","教辅",1,"普通高等学校专科及以上毕业生",null,"35周岁及以下","昆山户籍、持有低压电工证","昆山市兵希中学","漓江路66号"]
["A06","体育教师","教师",1,"全日制普通高校本科及以上学历学位","体育类","35周岁及以下",null,"昆山市玉山镇第三中心小学校","朝阳中路11号"]
["A19","体育教师","教师",1,"全日制普通高校本科及以上学历学位","体育类","35周岁及以下",null,"昆山市蓬朗中心小学校","天文路88号"]
["A36","体育教师","教师",1,"全日制普通高校本科及以上学历学位","体育类","35周岁及以下",null,"昆山开发区青阳港学校","西巷路58号"]
["A37","体育教师","教师",1,"全日制普通高校本科及以上学历学位","体育类","35周岁及以下",null,"昆山开发区青阳港学校","西巷路58号"]
["A49","体育教师","教师",2,"全日制普通高校本科及以上学历学位","体育类","35周岁及以下",null,"昆山开发区晨曦中学","开发区前程环路199号"]
["A53","体育教师","教师",1,"全日制普通高校本科及以上学历学位","体育类","35周岁及以下",null,"昆山开发区晨曦小学","太湖路166号"]
["A68","文印员","教辅",1,"普通高等学校专科及以上毕业生",null,"35周岁及以下","昆山户籍","昆山经济技术开发区高级中学","南浜路518号","男性，中专以上，45周以下，体格健全（需搬运纸张），能保质保量完成工作任务"]
["A50","物理教师","教师",3,"全日制普通高校本科及以上学历学位","物理类 ","35周岁及以下",null,"昆山开发区晨曦中学","开发区前程环路199号"]
["A14","物理实验员","教辅",1,"普通高等学校专科及以上毕业生","物理类","35周岁及以下","昆山户籍","昆山市蓬朗中学","景王路35号"]
["A69","消防安全员兼食品安全员","教辅",1,"普通高等学校专科及以上毕业生",null,"35周岁及以下","昆山户籍、持有食品安全管理员证及消防职业技能培训结业证书","昆山经济技术开发区高级中学","南浜路518号","男性，中专以上，35周以下，必须持有食品安全管理员证及消防职业技能培训结业证书"]
["A38","信息技术教师","教师",1,"全日制普通高校本科及以上学历学位","信息技术类 ","35周岁及以下",null,"昆山开发区青阳港学校","西巷路58号"]
["A15","音乐教师","教师",1,"全日制普通高校本科及以上学历学位","音乐类","35周岁及以下",null,"昆山市蓬朗中学","景王路35号"]
["A58","音乐教师","教师",1,"全日制普通高校本科及以上学历学位","音乐类","35周岁及以下",null,"昆山开发区兵希小学","千岛湖路1088号"]
["A70","音乐教师","教师",1,"全日制普通高校本科及以上学历学位","音乐类","35周岁及以下",null,"昆山经济技术开发区包桥小学","娄东路101号"]
["A07","英语教师","教师",1,"全日制普通高校本科及以上学历学位","英语类","35周岁及以下",null,"昆山市玉山镇第三中心小学校","朝阳中路11号"]
["A16","英语教师","教师",2,"全日制普通高校本科及以上学历学位","英语类","35周岁及以下",null,"昆山市蓬朗中学","景王路35号"]
["A24","英语教师","教师",1,"全日制普通高校本科及以上学历学位","英语类","35周岁及以下",null,"昆山开发区震川小学","樾河北路360号"]
["A59","英语教师","教师",1,"全日制普通高校本科及以上学历学位","英语类","35周岁及以下",null,"昆山开发区兵希小学","千岛湖路1088号"]
["A17","语文教师","教师",1,"全日制普通高校本科及以上学历学位","中国语言文学类；政治类；历史类；地理类、教育学类；心理学类","35周岁及以下",null,"昆山市蓬朗中学","景王路35号"]
["A25","语文教师","教师",3,"全日制普通高校本科及以上学历学位","中国语言文学类；政治类；历史类；地理类、教育学类；心理学类","35周岁及以下",null,"昆山开发区震川小学","樾河北路360号"]
["A26","语文教师","教师",1,"全日制普通高校本科及以上学历学位","中国语言文学类；政治类；历史类；地理类、教育学类；心理学类","35周岁及以下",null,"昆山开发区石予小学","浣花塘路368号","蓬朗派出所"]
["A39","语文教师","教师",1,"全日制普通高校本科及以上学历学位","中国语言文学类；政治类；历史类；地理类、教育学类；心理学类","35周岁及以下",null,"昆山开发区青阳港学校","西巷路58号"]
["A51","语文教师","教师",1,"全日制普通高校本科及以上学历学位","中国语言文学类；政治类；历史类；地理类、教育学类；心理学类","35周岁及以下",null,"昆山开发区晨曦中学","开发区前程环路199号"]
["A54","语文教师","教师",1,"全日制普通高校本科及以上学历学位","中国语言文学类；政治类；历史类；地理类、教育学类；心理学类","35周岁及以下",null,"昆山开发区晨曦小学","太湖路166号"]
["A60","语文教师","教师",4,"全日制普通高校本科及以上学历学位","中国语言文学类；政治类；历史类；地理类、教育学类；心理学类","35周岁及以下",null,"昆山开发区兵希小学","千岛湖路1088号"]
["A65","语文教师","教师",2,"全日制普通高校本科及以上学历学位","中国语言文学类；政治类；历史类；地理类、教育学类；心理学类","35周岁及以下",null,"昆山经济技术开发区实验小学","黄河北路127号"]
["A21","政治教师","教师",1,"全日制普通高校本科及以上学历学位","政治学类；马克思主义理论类","35周岁及以下",null,"昆山市兵希中学","漓江路66号"]

{"sheet":"校医、会计需求表","index":1,"n_rows":28,"n_cols":3,"rows_kept":28,"hidden":true}
["学校","岗位","数量"]
["晨曦小学","会计",2]
["锦华幼儿园","会计",1]
["青阳港学校","会计",1]
["盛庄幼儿园","会计",1]
["世茂幼儿园","会计",1]
["夏驾幼儿园","会计",1]
["绣衣幼儿园","会计",2]
["包桥小学","校医",1]
["兵希小学","校医",1]
["兵希幼儿园","校医",2]
["兵希中学","校医",1]
["晨曦小学","校医",2]
["晨曦中学","校医",1]
["蝶湖湾小学","校医",1]
["蝶湖湾幼儿园","校医",1]
["东部新城幼儿园","校医",1]
["开发区实小","校医",1]
["绿地幼儿园","校医",2]
["蓬朗幼儿园","校医",1]
["青阳港学校","校医",3]
["青阳港幼儿园","校医",1]
["盛庄幼儿园","校医",2]
["世茂小学","校医",1]
["世茂幼儿园","校医",1]
["西湾幼儿园","校医",2]
["玉山中学","校医",1]
["震川小学","校医",1]

{"sheet":"幼教总职数","index":2,"n_rows":13,"n_cols":13,"rows_kept":13,"hidden":true}
["岗位代码","岗位名称","岗位类别","招聘人数","学历学位要求","专业要求","年龄","其它要求","派遣单位",null,"派遣单位地址","区域","分组"]
["A43","幼儿园教师","教师",18,"普通高等学校专科及以上毕业生","学前教育专业、学前教育方向的艺术类专业","35周岁及以下",null,"昆山开发区绿地幼儿园",{"$f":"SUMIFS(分组!J:J,分组!I:I,I2)-D2","v":0},"景王路188号","兵希"]
["A56","幼儿园教师","教师",24,"普通高等学校专科及以上毕业生","学前教育专业、学前教育方向的艺术类专业","35周岁及以下",null,"昆山开发区兵希幼儿园",{"$f":"SUMIFS(分组!J:J,分组!I:I,I3)-D3","v":0},"昆山开发区幼学路5号","兵希"]
["A62","幼儿园教师","教师",15,"普通高等学校专科及以上毕业生","学前教育专业、学前教育方向的艺术类专业","35周岁及以下",null,"昆山经济技术开发区世茂幼儿园",{"$f":"SUMIFS(分组!J:J,分组!I:I,I4)-D4","v":0},"清江路188号","兵希"]
["A30","幼儿园教师","教师",5,"普通高等学校专科及以上毕业生","学前教育专业、学前教育方向的艺术类专业","35周岁及以下",null,"昆山开发区石予幼儿园",{"$f":"SUMIFS(分组!J:J,分组!I:I,I5)-D5","v":0},"富春江路68号","蓬朗"]
["A32","幼儿园教师","教师",20,"普通高等学校专科及以上毕业生","学前教育专业、学前教育方向的艺术类专业","35周岁及以下",null,"昆山开发区盛庄幼儿园",{"$f":"SUMIFS(分组!J:J,分组!I:I,I6)-D6","v":0},"昆山开发区盛悦路99号","蓬朗"]
["A41","幼儿园教师","教师",4,"普通高等学校专科及以上毕业生","学前教育专业、学前教育方向的艺术类专业","35周岁及以下",null,"昆山开发区蓬朗幼儿园",{"$f":"SUMIFS(分组!J:J,分组!I:I,I7)-D7","v":1},"蓬莱路677号","蓬朗"]
["A04","幼儿园教师","教师",1,"普通高等学校专科及以上毕业生","学前教育专业、学前教育方向的艺术类专业","35周岁及以下",null,"昆山市玉山镇第三中心小学校附属幼儿园",{"$f":"SUMIFS(分组!J:J,分组!I:I,I8)-D8","v":0},"黑龙江南路园明东村小区","青阳"]
["A09","幼儿园教师","教师",7,"普通高等学校专科及以上毕业生","学前教育专业、学前教育方向的艺术类专业","35周岁及以下",null,"昆山市绣衣幼儿园",{"$f":"SUMIFS(分组!J:J,分组!I:I,I9)-D9","v":0},"绣衣新村20号","青阳"]
["A10","幼儿园教师","教师",1,"普通高等学校专科及以上毕业生","学前教育专业、学前教育方向的艺术类专业","35周岁及以下",null,"昆山市西湾幼儿园",{"$f":"SUMIFS(分组!J:J,分组!I:I,I10)-D10","v":0},"西湾新村28—1号","青阳"]
["A34","幼儿园教师","教师",13,"普通高等学校专科及以上毕业生","学前教育专业、学前教育方向的艺术类专业","35周岁及以下",null,"昆山开发区青阳港幼儿园",{"$f":"SUMIFS(分组!J:J,分组!I:I,I11)-D11","v":0},"昆山市玉山镇童乐路28号","青阳"]
["A66","幼儿园教师","教师",7,"普通高等学校专科及以上毕业生","学前教育专业、学前教育方向的艺术类专业","35周岁及以下",null,"昆山经济技术开发区锦华幼儿园",{"$f":"SUMIFS(分组!J:J,分组!I:I,I12)-D12","v":0},"银泉路128号","青阳"]
["A28","幼儿园教师","教师",10,"普通高等学校专科及以上毕业生","学前教育专业、学前教育方向的艺术类专业","35周岁及以下",null,"昆山开发区蝶湖湾幼儿园",{"$f":"SUMIFS(分组!J:J,分组!I:I,I13)-D13","v":0},"新南中路316号","震川"]

{"sheet":"分组","index":3,"n_rows":28,"n_cols":13,"rows_kept":28,"merged":[[1,0,2,0],[1,1,2,1],[1,2,2,2],[1,3,2,3],[1,4,2,4],[1,5,2,5],[1,6,2,6],[1,7,2,7],[3,0,4,0],[3,1,4,1],[3,2,4,2],[3,3,4,3],[3,4,4,4],[3,5,4,5],[3,6,4,6],[3,7,4,7],[5,0,6,0],[5,1,6,1],[5,2,6,2],[5,3,6,3],[5,4,6,4],[5,5,6,5],[5,6,6,6],[5,7,6,7],[7,0,8,0],[7,1,8,1],[7,2,8,2],[7,3,8,3],[7,4,8,4],[7,5,8,5],[7,6,8,6],[7,7,8,7],[9,0,10,0],[9,1,10,1],[9,2,10,2],[9,3,10,3],[9,4,10,4],[9,5,10,5],[9,6,10,6],[9,7,10,7],[11,0,12,0],[11,1,12,1],[11,2,12,2],[11,3,12,3],[11,4,12,4],[11,5,12,5],[11,6,12,6],[11,7,12,7],[13,0,14,0],[13,1,14,1],[13,2,14,2],[13,3,14,3],[13,4,14,4],[13,5,14,5],[13,6,14,6],[13,7,14,7],[17,0,19,0],[17,1,19,1],[17,2,19,2],[17,3,19,3],[17,4,19,4],[17,5,19,5],[17,6,19,6],[17,7,19,7],[20,0,21,0],[20,1,21,1],[20,2,21,2],[20,3,21,3],[20,4,21,4],[20,5,21,5],[20,6,21,6],[20,7,21,7],[22,0,23,0],[22,1,23,1],[22,2,23,2],[22,3,23,3],[22,4,23,4],[22,5,23,5],[22,6,23,6],[22,7,23,7],[24,0,25,0],[24,1,25,1],[24,2,25,2],[24,3,25,3],[24,4,25,4],[24,5,25,5],[24,6,25,6],[24,7,25,7],[26,0,27,0],[26,1,27,1],[26,2,27,2],[26,3,27,3],[26,4,27,4],[26,5,27,5],[26,6,27,6],[26,7,27,7]]}
["岗位代码","岗位名称","岗位类别","本组招聘数量","学历学位要求","专业要求","年龄","其它要求","派遣单位","各校派遣人数","派遣单位地址","区域","分组"]
["B01","幼儿园教师","教师",{"$f":"SUM(J2:J3)","v":8},"普通高等学校专科及以上毕业生","学前教育专业、学前教育方向的艺术类专业","35周岁及以下",null,"昆山经济技术开发区世茂幼儿园",4,null,"兵希",1]
[{"$nulls":8},"昆山开发区绿地幼儿园",4,null,"兵希",1]
["B02","幼儿园教师","教师",8,"普通高等学校专科及以上毕业生","学前教育专业、学前教育方向的艺术类专业","35周岁及以下",null,"昆山经济技术开发区世茂幼儿园",4,null,"兵希",1]
[{"$nulls":8},"昆山开发区绿地幼儿园",4,null,"兵希",1]
["B03","幼儿园教师","教师",8,"普通高等学校专科及以上毕业生","学前教育专业、学前教育方向的艺术类专业","35周岁及以下",null,"昆山经济技术开发区世茂幼儿园",3,"清江路188号","兵希",3]
[{"$nulls":8},"昆山开发区绿地幼儿园",5,null,"兵希",3]
["B04","幼儿园教师","教师",{"$f":"SUM(J8:J9)","v":10},"普通高等学校专科及以上毕业生","学前教育专业、学前教育方向的艺术类专业","35周岁及以下",null,"昆山开发区绿地幼儿园",5,"景王路188号","兵希",4]
[{"$nulls":8},"昆山开发区盛庄幼儿园",5,null,"兵希",4]
["B05","幼儿园教师","教师",10,"普通高等学校专科及以上毕业生","学前教育专业、学前教育方向的艺术类专业","35周岁及以下",null,"昆山开发区蓬朗幼儿园",5,"蓬莱路677号","蓬朗",5]
[{"$nulls":8},"昆山开发区石予幼儿园",5,"富春江路68号","蓬朗",5]
["B06","幼儿园教师","教师",9,"普通高等学校专科及以上毕业生","学前教育专业、学前教育方向的艺术类专业","35周岁及以下",null,"昆山开发区盛庄幼儿园",5,"昆山开发区盛悦路99号","兵希",6]
[{"$nulls":8},"昆山经济技术开发区世茂幼儿园",4,null,"兵希",6]
["B07","幼儿园教师","教师",{"$f":"SUM(J14:J15)","v":10},"普通高等学校专科及以上毕业生","学前教育专业、学前教育方向的艺术类专业","35周岁及以下",null,"昆山开发区盛庄幼儿园",5,null,"兵希",7]
[{"$nulls":8},"昆山开发区盛庄幼儿园",5,null,"兵希",7]
["B08","幼儿园教师","教师",12,"普通高等学校专科及以上毕业生","学前教育专业、学前教育方向的艺术类专业","35周岁及以下",null,"昆山开发区兵希幼儿园",12,null,"兵希",8]
["B09","幼儿园教师","教师",12,"普通高等学校专科及以上毕业生","学前教育专业、学前教育方向的艺术类专业","35周岁及以下",null,"昆山开发区兵希幼儿园",12,"昆山开发区幼学路5号","兵希",9]
["B10","幼儿园教师","教师",{"$f":"SUM(J18:J20)","v":7},"普通高等学校专科及以上毕业生","学前教育专业、学前教育方向的艺术类专业","35周岁及以下",null,"昆山经济技术开发区锦华幼儿园",3,null,"青阳",10]
[{"$nulls":8},"昆山市西湾幼儿园",1,"西湾新村28—1号","青阳",10]
[{"$nulls":8},"昆山市绣衣幼儿园",3,null,"青阳",10]
["B11","幼儿园教师","教师",{"$f":"SUM(J21:J22)","v":8},"普通高等学校专科及以上毕业生","学前教育专业、学前教育方向的艺术类专业","35周岁及以下",null,"昆山经济技术开发区锦华幼儿园",4,"银泉路128号","青阳",11]
[{"$nulls":8},"昆山市绣衣幼儿园",4,"绣衣新村20号","青阳",11]
["B12","幼儿园教师","教师",6,"普通高等学校专科及以上毕业生","学前教育专业、学前教育方向的艺术类专业","35周岁及以下",null,"昆山开发区青阳港幼儿园",5,"昆山市玉山镇童乐路28号","青阳",12]
[{"$nulls":8},"昆山市玉山镇第三中心小学校附属幼儿园",1,"黑龙江南路园明东村小区","青阳",12]
["B13","幼儿园教师","教师",8,"普通高等学校专科及以上毕业生","学前教育专业、学前教育方向的艺术类专业","35周岁及以下",null,"昆山开发区青阳港幼儿园",4,null,"青阳",13]
[{"$nulls":8},"昆山开发区青阳港幼儿园",4,null,"青阳",13]
["B14","幼儿园教师","教师",{"$f":"SUM(J27:J28)","v":10},"普通高等学校专科及以上毕业生","学前教育专业、学前教育方向的艺术类专业","35周岁及以下",null,"昆山开发区蝶湖湾幼儿园",5,null,"震川",14]
[{"$nulls":8},"昆山开发区蝶湖湾幼儿园",5,"新南中路316号","震川",14]